fUSD/lending_fUSD_20251110
["ID","MTS","AMOUNT","RATE_DAILY","PERIOD"]
[393556206,1762797053730,-162.14,0.00037058,60]
[393556207,1762797053746,-150.56,0.00037088,60]
[393556208,1762797053761,-150.6,0.00037096,60]
[393556209,1762797053776,-1459.25247578,0.000371,2]
[393556210,1762797053814,-40.74752422,0.000371,2]
[393556211,1762797053830,-1500.0,0.000371,2]
[393556212,1762797053845,-536.51436795,0.00037132,2]
[393556213,1762797053861,-157.94,0.00037133,60]
[393556214,1762797053876,-192.7971857,0.00037139,2]
[393556215,1762797053891,-171.95,0.00037149,60]
[393556216,1762797053907,-162.14,0.00037158,60]
[393556217,1762797053921,-150.56,0.00037188,60]
[393556218,1762797053937,-150.6,0.00037196,60]
[393556219,1762797053952,-157.94,0.00037233,60]
[393556220,1762797053967,-171.95,0.00037249,60]
[393556221,1762797053983,-162.14,0.00037258,60]
[393556222,1762797053999,-999.0,0.0003726,120]
[393556223,1762797054016,-150.56,0.00037288,60]
[393556224,1762797054032,-150.6,0.00037296,60]
[393556225,1762797054048,-222.44773578,0.000373,120]
[393556226,1762797054064,-3871.17258918,0.00037318,2]
[393556227,1762797054094,-3258.01708985,0.00037318,2]
[393556228,1762797054109,-157.94,0.00037333,60]
[393556229,1762797054125,-171.95,0.00037349,60]
[393556230,1762797054141,-162.14,0.00037358,60]
[393556231,1762797054156,-150.56,0.00037388,60]
[393556232,1762797054171,-150.6,0.00037396,60]
[393556233,1762797054188,-2000.0,0.000374,2]
[393556234,1762797054203,-746.64673016,0.00037409,2]
[393556235,1762797054220,-157.94,0.00037433,60]
[393556236,1762797054234,-171.95,0.00037449,60]
[393556237,1762797054250,-162.14,0.00037458,60]
[393556238,1762797054265,-1000.0,0.00037466,7]
[393556239,1762797054281,-5064.14238,0.00037477,30]
[393556240,1762797054297,-150.56,0.00037488,60]
[393556241,1762797054309,-500.0,0.00037489,7]
[393556242,1762797054319,-112.75028714,0.00037496,60]
[393556243,1762797054331,-37.84971286,0.00037496,60]
[393556244,1762797054341,-157.94,0.00037533,60]
[393556245,1762797054351,-294.48338379,0.00037549,2]
[393556246,1762797054361,-171.95,0.00037549,60]
[393556247,1762797054371,-162.14,0.00037558,60]
[393556248,1762797054381,-150.56,0.00037588,60]
[393556249,1762797054391,-150.6,0.00037596,60]
[393556250,1762797054400,-157.94,0.00037633,60]
[393556251,1762797054410,-548.67263448,0.0003764,2]
[393556252,1762797054419,-171.95,0.00037649,60]
[393556253,1762797054428,-162.18186841,0.00037658,60]
[393556254,1762797054436,-600.0,0.00037671,120]
[393556255,1762797054445,-150.56,0.00037688,60]
[393556256,1762797054459,-150.6,0.00037696,60]
[393556257,1762797054469,-157.94,0.00037733,60]
[393556258,1762797054478,-171.95,0.00037749,60]
[393556259,1762797054770,-150.56,0.00037788,60]
[393556260,1762797054790,-150.6,0.00037796,60]
[393556261,1762797054813,-200.62837306,0.00037822,120]
[393556262,1762797054831,-157.94,0.00037833,60]
[393556263,1762797054841,-5266.53542702,0.00037844,30]
[393556264,1762797054851,-171.95,0.00037849,60]
[393556265,1762797054860,-340.51927141,0.00037881,15]
[393556266,1762797054870,-150.56,0.00037888,60]
[393556267,1762797054880,-150.6,0.00037896,60]
[393556268,1762797054889,-150.0,0.00037901,120]
[393556269,1762797054899,-157.94,0.00037933,60]
[393556270,1762797054909,-171.95,0.00037949,60]
[393556271,1762797054918,-150.56,0.00037988,60]
[393556272,1762797054928,-500.0,0.00037989,7]
[393556273,1762797054938,-678.7,0.00037989,2]
[393556274,1762797054948,-150.6,0.00037996,60]
[393556275,1762797054957,-500.0,0.00037999,7]
[393556276,1762797054966,-500.0,0.00037999,7]
[393556277,1762797054976,-678.7,0.00037999,2]
[393556278,1762797054985,-2000.0,0.00038,2]
[393556279,1762797054995,-2000.0,0.00038,2]
[393556280,1762797055006,-2000.0,0.00038,2]
[393556281,1762797055016,-2000.0,0.00038,2]
[393556282,1762797055029,-2000.0,0.00038,2]
[393556283,1762797055039,-2000.0,0.00038,2]
[393556284,1762797055049,-2000.0,0.00038,2]
[393556285,1762797055058,-4542.40700689,0.00038,45]
[393556286,1762797055071,-45657.59299311,0.00038,45]
[393556287,1762797055080,-2000.0,0.00038,2]
[393556288,1762797055090,-37481.19768968,0.00038,30]
[393556289,1762797055100,-200.0,0.00038,120]
[393556290,1762797055110,-2000.0,0.00038,2]
[393556291,1762797055120,-168.0,0.00038,30]
[393556292,1762797055130,-277.1334681,0.00038,120]
[393556293,1762797055139,-2000.0,0.00038,2]
[393556294,1762797055157,-1008.0,0.00038,7]
[393556295,1762797055167,-151.0,0.00038,31]
[393556296,1762797055177,-467.021213,0.00038,31]
[393556297,1762797055186,-151.0,0.00038,31]
[393556298,1762797055196,-467.021213,0.00038,31]
[393556299,1762797055207,-467.021213,0.00038,31]
[393556300,1762797055221,-215.888626,0.00038,31]
[393556301,1762797055231,-467.021213,0.00038,31]
[393556302,1762797055242,-215.888626,0.00038,31]
[393556303,1762797055252,-156.900107,0.00038,31]
[393556304,1762797055262,-215.888626,0.00038,31]
[393556305,1762797055272,-235.11172,0.00038,31]
[393556306,1762797055282,-805.913406,0.00038,31]
[393556307,1762797055292,-215.888626,0.00038,31]
[393556308,1762797055302,-805.913406,0.00038,31]
[393556309,1762797055312,-151.0,0.00038,31]
[393556310,1762797055322,-239.033808,0.00038,31]
[393556311,1762797055331,-151.0,0.00038,31]
[393556312,1762797055341,-805.913406,0.00038,31]
[393556313,1762797055352,-239.033808,0.00038,31]
[393556314,1762797055361,-805.913406,0.00038,31]
[393556315,1762797055371,-239.033808,0.00038,31]
[393556316,1762797055380,-159.778474,0.00038,31]
[393556317,1762797055390,-151.0,0.00038,31]
[393556318,1762797055400,-151.0,0.00038,30]
[393556319,1762797055410,-157.94,0.00038033,60]
[393556320,1762797055423,-150.0,0.0003804,120]
[393556321,1762797055432,-171.95,0.00038049,60]
[393556322,1762797055444,-22685.90052732,0.0003807,30]
[393556323,1762797055458,-999.0,0.00038082,120]
[393556324,1762797055468,-300.0,0.00038086,88]
[393556325,1762797055477,-150.56,0.00038088,60]
[393556326,1762797055486,-241.53105447,0.000381,33]
[393556327,1762797055498,-214.08822785,0.000381,33]
[393556328,1762797055507,-688.0,0.00038127,20]
[393556329,1762797055517,-212.42638927,0.00038133,2]
[393556330,1762797055526,-157.94,0.00038133,60]
[393556331,1762797055537,-171.95,0.00038149,60]
[393556332,1762797055546,-150.56,0.00038188,60]
[393556333,1762797055555,-678.7,0.00038192,2]
[393556334,1762797055565,-4956.38007649,0.00038217,2]
[393556335,1762797055574,-157.94,0.00038233,60]
[393556336,1762797055584,-1250.07,0.0003824,2]
[393556337,1762797055593,-171.95,0.00038249,60]
[393556338,1762797055603,-151.623,0.00038258,2]
[393556339,1762797055612,-161.81162637,0.00038258,2]
[393556340,1762797055624,-293.67,0.00038258,2]
[393556341,1762797055633,-152.0,0.00038279,6]
[393556342,1762797055643,-150.56,0.00038288,60]
[393556343,1762797055653,-350.44,0.000383,120]
[393556344,1762797055662,-1250.07,0.00038308,2]
[393556345,1762797055672,-157.95,0.00038333,60]
[393556346,1762797055682,-171.95,0.00038349,60]
[393556347,1762797055692,-500.0,0.00038355,7]
[393556348,1762797055702,-500.0,0.00038355,2]
[393556349,1762797055711,-500.0,0.00038356,2]
[393556350,1762797055721,-500.0,0.00038356,2]
[393556351,1762797055730,-613.32851672,0.00038356,2]
[393556352,1762797055739,-500.0,0.00038356,2]
[393556353,1762797055748,-500.0,0.00038356,2]
[393556354,1762797055758,-500.0,0.00038356,2]
[393556355,1762797055767,-500.0,0.00038356,2]
[393556356,1762797055777,-500.0,0.00038356,2]
[393556357,1762797055786,-500.0,0.00038356,2]
[393556358,1762797055796,-500.0,0.00038356,2]
[393556359,1762797055805,-500.0,0.00038356,2]
[393556360,1762797055815,-500.0,0.00038356,2]
[393556361,1762797055824,-500.0,0.00038356,2]
[393556362,1762797055834,-500.0,0.00038356,2]
[393556363,1762797055844,-500.0,0.00038356,2]
[393556364,1762797055854,-500.0,0.00038356,2]
[393556365,1762797055864,-500.0,0.00038356,2]
[393556366,1762797055874,-500.0,0.00038356,2]
[393556367,1762797055883,-500.0,0.00038356,2]
[393556368,1762797055893,-500.0,0.00038356,2]
[393556369,1762797055902,-500.0,0.00038356,2]
[393556370,1762797055912,-500.0,0.00038356,2]
[393556371,1762797055921,-446.48208693,0.00038356,2]
[393556372,1762797055931,-269.23995997,0.00038356,120]
[393556373,1762797055941,-3218.0,0.00038356,5]
[393556374,1762797055950,-1000.0,0.00038356,2]
[393556375,1762797055960,-1000.0,0.00038356,2]
[393556376,1762797055970,-1000.0,0.00038356,2]
[393556377,1762797055980,-1000.0,0.00038356,2]
[393556378,1762797055990,-1000.0,0.00038356,2]
[393556379,1762797055999,-1000.0,0.00038356,2]
[393556380,1762797056017,-1000.0,0.00038356,2]
[393556381,1762797056030,-1000.0,0.00038356,2]
[393556382,1762797056040,-1000.0,0.00038356,2]
[393556383,1762797056051,-1000.0,0.00038356,2]
[393556384,1762797056062,-1000.0,0.00038356,2]
[393556385,1762797056072,-1000.0,0.00038356,2]
[393556386,1762797056083,-1028.37693784,0.00038356,2]
[393556387,1762797056094,-1374.1,0.00038356,2]
[393556388,1762797056104,-1374.1,0.00038356,2]
[393556389,1762797056114,-1374.1,0.00038356,2]
[393556390,1762797056124,-1374.1,0.00038356,2]
[393556391,1762797056134,-1374.1,0.00038356,2]
[393556392,1762797056145,-1374.1,0.00038356,2]
[393556393,1762797056156,-1374.1,0.00038356,2]
[393556394,1762797056174,-1374.1,0.00038356,2]
[393556395,1762797056184,-1374.1,0.00038356,2]
[393556396,1762797056195,-1374.1,0.00038356,2]
[393556397,1762797056204,-1374.1,0.00038356,2]
[393556398,1762797056215,-1374.1,0.00038356,2]
[393556399,1762797056229,-1374.1,0.00038356,2]
[393556400,1762797056240,-1374.1,0.00038356,2]
[393556401,1762797056250,-1374.1,0.00038356,2]
[393556402,1762797056261,-1374.1,0.00038356,2]
[393556403,1762797056271,-1374.1,0.00038356,2]
[393556404,1762797056282,-1374.1,0.00038356,2]
[393556405,1762797056293,-1374.1,0.00038356,2]
[393556406,1762797056304,-1374.1,0.00038356,2]
[393556407,1762797056315,-1374.1,0.00038356,2]
[393556408,1762797056326,-1374.1,0.00038356,2]
[393556409,1762797056336,-1374.1,0.00038356,2]
[393556410,1762797056347,-1374.23454808,0.00038356,2]
[393556411,1762797056358,-515.39494023,0.00038356,10]
[393556412,1762797056368,-500.0,0.00038356,2]
[393556413,1762797056379,-198.37776562,0.00038356,120]
[393556414,1762797056389,-1163.03,0.00038356,2]
[393556415,1762797056399,-1163.03,0.00038356,2]
[393556416,1762797056410,-1163.03,0.00038356,2]
[393556417,1762797056420,-1163.03,0.00038356,2]
[393556418,1762797056431,-1163.03,0.00038356,2]
[393556419,1762797056441,-1163.03,0.00038356,2]
[393556420,1762797056452,-1163.03,0.00038356,2]
[393556421,1762797056465,-1163.03,0.00038356,2]
[393556422,1762797056476,-1163.03,0.00038356,2]
[393556423,1762797056486,-1163.03,0.00038356,2]
[393556424,1762797056496,-1163.03,0.00038356,2]
[393556425,1762797056508,-1163.03,0.00038356,2]
[393556426,1762797056518,-1163.03,0.00038356,2]
[393556427,1762797056530,-1163.03,0.00038356,2]
[393556428,1762797056540,-1163.03,0.00038356,2]
[393556429,1762797056550,-1163.03,0.00038356,2]
[393556430,1762797056559,-1163.03,0.00038356,2]
[393556431,1762797056569,-1163.03,0.00038356,2]
[393556432,1762797056583,-1163.03,0.00038356,2]
[393556433,1762797056594,-1163.03,0.00038356,2]
[393556434,1762797056604,-1163.03,0.00038356,2]
[393556435,1762797056614,-1163.03,0.00038356,2]
[393556436,1762797056624,-1163.03,0.00038356,2]
[393556437,1762797056634,-1163.05193667,0.00038356,2]
[393556438,1762797056645,-300.0,0.00038356,2]
[393556439,1762797056655,-300.0,0.00038356,2]
[393556440,1762797056666,-300.0,0.00038356,2]
[393556441,1762797056676,-300.0,0.00038356,2]
[393556442,1762797056687,-300.0,0.00038356,2]
[393556443,1762797056698,-300.0,0.00038356,2]
[393556444,1762797056708,-300.0,0.00038356,2]
[393556445,1762797056718,-300.0,0.00038356,2]
[393556446,1762797056728,-300.0,0.00038356,2]
[393556447,1762797056738,-300.0,0.00038356,2]
[393556448,1762797056748,-300.0,0.00038356,2]
[393556449,1762797056758,-300.0,0.00038356,2]
[393556450,1762797056768,-300.0,0.00038356,2]
[393556451,1762797056778,-333.40328937,0.00038356,2]
[393556452,1762797056788,-944.56894104,0.00038356,120]
[393556453,1762797056798,-1286.7423,0.00038356,7]
[393556454,1762797056807,-1286.7423,0.00038356,7]
[393556455,1762797056817,-1286.7423,0.00038356,7]
[393556456,1762797056827,-1286.7423,0.00038356,7]
[393556457,1762797056837,-161.81162637,0.00038358,2]
[393556458,1762797056847,-150.56,0.00038388,120]
[393556459,1762797056857,-9477.40597512,0.000384,120]
[393556460,1762797056867,-591.54575894,0.000384,30]
[393556461,1762797056877,-171.95,0.00038449,120]
[393556462,1762797056887,-161.81162637,0.00038458,2]
[393556463,1762797056896,-150.56,0.00038488,120]
[393556464,1762797056906,-23765.83064379,0.000385,30]
[393556465,1762797056915,-152.373016,0.000385,120]
[393556466,1762797056926,-151.0,0.000385,120]
[393556467,1762797056935,-151.0,0.000385,120]
[393556468,1762797056946,-151.0,0.000385,120]
[393556469,1762797056956,-151.0,0.000385,120]
[393556470,1762797056967,-151.0,0.000385,120]
[393556471,1762797056977,-151.0,0.000385,120]
[393556472,1762797056987,-260.466289,0.000385,120]
[393556473,1762797056998,-151.0,0.000385,120]
[393556474,1762797057009,-151.0,0.000385,120]
[393556475,1762797057018,-151.0,0.000385,120]
[393556476,1762797057028,-151.0,0.000385,120]
[393556477,1762797057038,-151.0,0.000385,120]
[393556478,1762797057047,-151.0,0.000385,120]
[393556479,1762797057057,-170.785674,0.000385,120]
[393556480,1762797057069,-556.36539957,0.00038501,2]
[393556481,1762797057078,-688.0,0.0003852,20]
[393556482,1762797057087,-171.95,0.00038549,120]
[393556483,1762797057096,-161.81162637,0.00038558,2]
[393556484,1762797057105,-150.56,0.00038588,120]
[393556485,1762797057116,-1356.68310241,0.00038633,10]
[393556486,1762797057127,-1356.68310228,0.00038633,10]
[393556487,1762797057139,-1356.68310228,0.00038633,10]
[393556488,1762797057149,-1356.68310228,0.00038633,10]
[393556489,1762797057159,-1356.68310228,0.00038633,10]
[393556490,1762797057169,-1356.68310228,0.00038633,10]
[393556491,1762797057179,-1356.68310228,0.00038633,10]
[393556492,1762797057189,-1356.68310228,0.00038633,10]
[393556493,1762797057199,-1356.68310228,0.00038633,10]
[393556494,1762797057210,-1356.68310228,0.00038633,10]
[393556495,1762797057221,-1356.68310228,0.00038633,10]
[393556496,1762797057231,-1356.68310228,0.00038633,10]
[393556497,1762797057241,-1356.68310228,0.00038633,10]
[393556498,1762797057250,-171.95,0.00038649,120]
[393556499,1762797057264,-161.81162637,0.00038658,2]
[393556500,1762797057275,-150.0,0.00038682,120]
[393556501,1762797057284,-150.56,0.00038688,120]
[393556502,1762797057294,-187.28052526,0.00038709,120]
[393556503,1762797057304,-187.28052526,0.00038709,120]
[393556504,1762797057314,-187.28052526,0.00038709,120]
[393556505,1762797057324,-187.28052526,0.00038709,120]
[393556506,1762797057334,-187.28052526,0.00038709,120]
[393556507,1762797057344,-187.28052526,0.00038709,120]
[393556508,1762797057354,-187.28052526,0.00038709,120]
[393556509,1762797057363,-187.28052526,0.00038709,120]
[393556510,1762797057373,-187.28052526,0.00038709,120]
[393556511,1762797057383,-187.28052526,0.00038709,120]
[393556512,1762797057392,-187.28052526,0.00038709,120]
[393556513,1762797057402,-187.28052526,0.00038709,120]
[393556514,1762797057412,-187.28052526,0.00038709,120]
[393556515,1762797057421,-187.28052526,0.00038709,120]
[393556516,1762797057431,-187.28052526,0.00038709,120]
[393556517,1762797057441,-187.28052526,0.00038709,120]
[393556518,1762797057451,-187.28052526,0.00038709,120]
[393556519,1762797057464,-187.28052526,0.00038709,120]
[393556520,1762797057475,-187.28052526,0.00038709,120]
[393556521,1762797057484,-187.28,0.00038709,120]
[393556522,1762797057495,-436.98789226,0.00038709,120]
[393556523,1762797057505,-436.98789226,0.00038709,120]
[393556524,1762797057515,-436.98789226,0.00038709,120]
[393556525,1762797057524,-436.98789226,0.00038709,120]
[393556526,1762797057536,-436.98789226,0.00038709,120]
[393556527,1762797057545,-436.98789226,0.00038709,120]
[393556528,1762797057555,-436.98789226,0.00038709,120]
[393556529,1762797057564,-436.98789226,0.00038709,120]
[393556530,1762797057574,-436.98789226,0.00038709,120]
[393556531,1762797057583,-436.98789226,0.00038709,120]
[393556532,1762797057593,-436.98789226,0.00038709,120]
[393556533,1762797057603,-436.98789226,0.00038709,120]
[393556534,1762797057612,-436.98789226,0.00038709,120]
[393556535,1762797057622,-436.98789226,0.00038709,120]
[393556536,1762797057632,-436.98789226,0.00038709,120]
[393556537,1762797057641,-436.98789226,0.00038709,120]
[393556538,1762797057651,-436.98789226,0.00038709,120]
[393556539,1762797057660,-213.956178,0.00038709,120]
[393556540,1762797057670,-213.956178,0.00038709,120]
[393556541,1762797057679,-213.956178,0.00038709,120]
[393556542,1762797057689,-213.956178,0.00038709,120]
[393556543,1762797057698,-213.956178,0.00038709,120]
[393556544,1762797057708,-213.956178,0.00038709,120]
[393556545,1762797057718,-213.956178,0.00038709,120]
[393556546,1762797057727,-213.956178,0.00038709,120]
[393556547,1762797057736,-213.956178,0.00038709,120]
[393556548,1762797057746,-213.956178,0.00038709,120]
[393556549,1762797057756,-213.956178,0.00038709,120]
[393556550,1762797057765,-213.956178,0.00038709,120]
[393556551,1762797057775,-213.956178,0.00038709,120]
[393556552,1762797057785,-213.956178,0.00038709,120]
[393556553,1762797057794,-213.956178,0.00038709,120]
[393556554,1762797057804,-213.956178,0.00038709,120]
[393556555,1762797057814,-213.956178,0.00038709,120]
[393556556,1762797057823,-213.956178,0.00038709,120]
[393556557,1762797057833,-213.956178,0.00038709,120]
[393556558,1762797057842,-213.95,0.00038709,120]
[393556559,1762797057852,-499.23108201,0.00038709,120]
[393556560,1762797057861,-499.23108201,0.00038709,120]
[393556561,1762797057871,-499.23108201,0.00038709,120]
[393556562,1762797057879,-499.23108201,0.00038709,120]
[393556563,1762797057888,-499.23108201,0.00038709,120]
[393556564,1762797057899,-499.23108201,0.00038709,120]
[393556565,1762797057908,-499.23108201,0.00038709,120]
[393556566,1762797057919,-499.23108201,0.00038709,120]
[393556567,1762797057930,-499.23108201,0.00038709,120]
[393556568,1762797057939,-499.23108201,0.00038709,120]
[393556569,1762797057949,-499.23108201,0.00038709,120]
[393556570,1762797057959,-499.23108201,0.00038709,120]
[393556571,1762797057969,-499.23108201,0.00038709,120]
[393556572,1762797057979,-499.23108201,0.00038709,120]
[393556573,1762797057989,-499.23108201,0.00038709,120]
[393556574,1762797057999,-499.23108201,0.00038709,120]
[393556575,1762797058009,-499.23108201,0.00038709,120]
[393556576,1762797058019,-200.62837306,0.00038735,120]
[393556577,1762797058028,-85587.70970035,0.0003874,30]
[393556578,1762797058039,-151.0,0.0003874,120]
[393556579,1762797058048,-151.0,0.0003874,120]
[393556580,1762797058058,-151.0,0.0003874,120]
[393556581,1762797058068,-151.0,0.0003874,120]
[393556582,1762797058078,-402.560591,0.0003874,120]
[393556583,1762797058089,-402.560591,0.0003874,120]
[393556584,1762797058100,-402.560591,0.0003874,120]
[393556585,1762797058109,-332.406072,0.0003874,120]
[393556586,1762797058119,-151.0,0.0003874,120]
[393556587,1762797058129,-402.560591,0.0003874,120]
[393556588,1762797058140,-151.0,0.0003874,120]
[393556589,1762797058150,-332.406072,0.0003874,120]
[393556590,1762797058160,-151.0,0.0003874,120]
[393556591,1762797058170,-332.406072,0.0003874,120]
[393556592,1762797058180,-332.406072,0.0003874,120]
[393556593,1762797058190,-151.0,0.0003874,120]
[393556594,1762797058384,-151.0,0.0003874,120]
[393556595,1762797058395,-194.657317,0.0003874,120]
[393556596,1762797058404,-151.0,0.0003874,120]
[393556597,1762797058413,-194.657317,0.0003874,120]
[393556598,1762797058423,-158.676866,0.0003874,120]
[393556599,1762797058432,-151.0,0.0003874,120]
[393556600,1762797058441,-194.657317,0.0003874,120]
[393556601,1762797058452,-361.479127,0.0003874,120]
[393556602,1762797058463,-194.657317,0.0003874,120]
[393556603,1762797058473,-151.0,0.0003874,120]
[393556604,1762797058483,-361.479127,0.0003874,120]
[393556605,1762797058493,-195.24302,0.0003874,120]
[393556606,1762797058502,-188.509328,0.0003874,120]
[393556607,1762797058512,-361.479127,0.0003874,120]
[393556608,1762797058521,-498.837566,0.0003874,120]
[393556609,1762797058534,-361.479127,0.0003874,120]
[393556610,1762797058544,-498.837566,0.0003874,120]
[393556611,1762797058553,-498.837566,0.0003874,120]
[393556612,1762797058563,-151.0,0.0003874,120]
[393556613,1762797058572,-703.686914,0.0003874,120]
[393556614,1762797058582,-498.837566,0.0003874,120]
[393556615,1762797058592,-151.0,0.0003874,120]
[393556616,1762797058601,-703.686914,0.0003874,120]
[393556617,1762797058610,-151.0,0.0003874,120]
[393556618,1762797058620,-703.686914,0.0003874,120]
[393556619,1762797058629,-703.686914,0.0003874,120]
[393556620,1762797058639,-152.823754,0.0003874,120]
[393556621,1762797058648,-151.0,0.0003874,120]
[393556622,1762797058657,-154.624,0.0003874,120]
[393556623,1762797058666,-214.91846,0.0003874,120]
[393556624,1762797058675,-151.0,0.0003874,120]
[393556625,1762797058686,-154.624,0.0003874,120]
[393556626,1762797058695,-214.91846,0.0003874,120]
[393556627,1762797058704,-151.0,0.0003874,120]
[393556628,1762797058714,-154.624,0.0003874,120]
[393556629,1762797058723,-214.91846,0.0003874,120]
[393556630,1762797058733,-154.624,0.0003874,120]
[393556631,1762797058742,-214.91846,0.0003874,120]
[393556632,1762797058752,-436.98789226,0.00038742,120]
[393556633,1762797058761,-499.23108201,0.00038742,120]
[393556634,1762797058771,-150.0,0.00038745,2]
[393556635,1762797058780,-171.95,0.00038749,120]
[393556636,1762797058789,-161.81162637,0.00038758,2]
[393556637,1762797058799,-150.66366647,0.00038788,120]
[393556638,1762797058808,-1142.39896016,0.000388,120]
[393556639,1762797058818,-28488.72248741,0.000388,30]
[393556640,1762797058827,-880.02878388,0.000388,60]
[393556641,1762797058836,-30000.0,0.000388,30]
[393556642,1762797058845,-151.0,0.000388,120]
[393556643,1762797058855,-151.0,0.000388,120]
[393556644,1762797058865,-151.0,0.000388,120]
[393556645,1762797058874,-151.0,0.000388,120]
[393556646,1762797058883,-151.0,0.000388,120]
[393556647,1762797058893,-151.0,0.000388,120]
[393556648,1762797058903,-151.0,0.000388,120]
[393556649,1762797058912,-151.0,0.000388,120]
[393556650,1762797058921,-151.0,0.000388,120]
[393556651,1762797058930,-151.0,0.000388,120]
[393556652,1762797058940,-151.0,0.000388,120]
[393556653,1762797058950,-151.0,0.000388,120]
[393556654,1762797058959,-151.0,0.000388,120]
[393556655,1762797058969,-178.13537007,0.000388,120]
[393556656,1762797058978,-178.13537005,0.000388,120]
[393556657,1762797058989,-178.13537005,0.000388,120]
[393556658,1762797058999,-178.13537005,0.000388,120]
[393556659,1762797059009,-500.0,0.00038808,2]
[393556660,1762797059018,-500.0,0.00038808,2]
[393556661,1762797059028,-298713.3165247,0.00038809,7]
[393556662,1762797059037,-151.0,0.00038809,120]
[393556663,1762797059047,-151.0,0.00038809,120]
[393556664,1762797059056,-151.0,0.00038809,60]
[393556665,1762797059066,-151.0,0.00038809,60]
[393556666,1762797059076,-151.0,0.00038809,120]
[393556667,1762797059085,-161.459249,0.00038809,120]
[393556668,1762797059095,-180.494328,0.00038809,120]
[393556669,1762797059104,-252.576608,0.00038809,120]
[393556670,1762797059113,-151.0,0.00038809,120]
[393556671,1762797059123,-252.576608,0.00038809,120]
[393556672,1762797059134,-252.576608,0.00038809,120]
[393556673,1762797059145,-252.576608,0.00038809,120]
[393556674,1762797059154,-189.827585,0.00038809,120]
[393556675,1762797059164,-189.827585,0.00038809,120]
[393556676,1762797059173,-151.0,0.00038809,120]
[393556677,1762797059183,-189.827585,0.00038809,120]
[393556678,1762797059193,-189.827585,0.00038809,120]
[393556679,1762797059203,-151.0,0.00038809,120]
[393556680,1762797059213,-226.5,0.00038809,120]
[393556681,1762797059223,-151.0,0.00038809,120]
[393556682,1762797059233,-226.5,0.00038809,120]
[393556683,1762797059242,-151.0,0.00038809,120]
[393556684,1762797059251,-226.5,0.00038809,120]
[393556685,1762797059261,-226.5,0.00038809,120]
[393556686,1762797059270,-151.0,0.00038809,120]
[393556687,1762797059280,-151.0,0.00038809,120]
[393556688,1762797059289,-151.0,0.00038809,120]
[393556689,1762797059299,-550.537442,0.00038809,120]
[393556690,1762797059309,-550.537442,0.00038809,120]
[393556691,1762797059318,-158.148859,0.00038809,120]
[393556692,1762797059327,-151.0,0.00038809,120]
[393556693,1762797059337,-550.537442,0.00038809,120]
[393556694,1762797059347,-158.148859,0.00038809,120]
[393556695,1762797059357,-151.0,0.00038809,120]
[393556696,1762797059367,-151.0,0.00038809,120]
[393556697,1762797059376,-151.0,0.00038809,120]
[393556698,1762797059386,-550.537442,0.00038809,120]
[393556699,1762797059396,-158.148859,0.00038809,120]
[393556700,1762797059406,-151.0,0.00038809,120]
[393556701,1762797059417,-158.148859,0.00038809,120]
[393556702,1762797059427,-151.0,0.00038809,120]
[393556703,1762797059439,-151.0,0.00038809,120]
[393556704,1762797059449,-151.0,0.00038809,120]
[393556705,1762797059463,-235.516072,0.00038809,120]